fUST/lending_fUST_20250731
["ID","MTS","AMOUNT","RATE_DAILY","PERIOD"]
[376381845,1753956649499,-460.0,0.0002,2]
[376381846,1753956649509,-583.67,0.0002,2]
[376381847,1753956649519,-460.0,0.0002,2]
[376381848,1753956649529,-1465.88,0.0002,2]
[376381849,1753956649538,-464.68809538,0.0002,2]
[376381850,1753956649548,-460.0,0.0002,2]
[376381851,1753956649557,-958.59,0.0002,2]
[376381852,1753956649567,-460.0,0.0002,2]
[376381853,1753956649576,-460.0,0.0002,2]
[376381854,1753956649587,-460.0,0.0002,2]
[376381855,1753956649596,-460.0,0.0002,2]
[376381856,1753956649605,-585.31,0.0002,2]
[376381857,1753956649614,-460.0,0.0002,2]
[376381858,1753956649623,-582.92,0.0002,2]
[376381859,1753956649633,-486.09,0.0002,2]
[376381860,1753956649642,-93.73853491,0.0002,2]
[376381861,1753956649780,-489.49459127,0.0002,2]
[376381862,1753956649789,-489.19,0.0002,2]
[376381863,1753956649799,-460.0,0.0002,2]
[376381864,1753956649808,-460.0,0.0002,2]
[376381865,1753956649818,-460.0,0.0002,2]
[376381866,1753956649829,-809.34,0.0002,2]
[376381867,1753956649838,-460.0,0.0002,2]
[376381868,1753956649848,-460.0,0.0002,2]
[376381869,1753956649857,-460.0,0.0002,2]
[376381870,1753956649867,-576.86099704,0.00020021,2]
[376381871,1753956649876,-504.16364285,0.00020021,2]
[376381872,1753956649885,-1000.0,0.00020021,2]
[376381873,1753956649894,-500.0,0.00020021,2]
[376381874,1753956649903,-642.16700293,0.00020041,2]
[376381875,1753956649913,-216.18812866,0.00020054,2]
[376381876,1753956649922,-526.848153,0.00020054,2]
[376381877,1753956649931,-460.682337,0.00020054,2]
[376381878,1753956649940,-12642.0599901,0.00020062,2]
[376381879,1753956649949,-160.0,0.00020062,2]
[376381880,1753956649958,-160.0,0.00020062,2]
[376381881,1753956649967,-160.0,0.00020062,2]
[376381882,1753956649976,-841.37753757,0.00020062,2]
[376381883,1753956649985,-160.0,0.00020062,2]
[376381884,1753956649995,-160.0,0.00020062,2]
[376381885,1753956650004,-214.99831783,0.00020062,2]
[376381886,1753956650014,-2923.18878473,0.00020141,2]
[376381887,1753956650023,-1500.0,0.00020168,2]
[376381888,1753956650032,-1500.0,0.00020168,2]
[376381889,1753956650042,-180.614107,0.00020187,2]
[376381890,1753956650051,-151.0,0.000202,4]
[376381891,1753956650061,-300.85306685,0.00020273,2]
[376381892,1753956650070,-460.0,0.00020273,2]
[376381893,1753956650080,-460.0,0.00020273,2]
[376381894,1753956650090,-199.28404002,0.00020273,2]
[376381895,1753956650099,-460.0,0.00020273,2]
[376381896,1753956650108,-460.0,0.00020273,2]
[376381897,1753956650118,-460.0,0.00020273,2]
[376381898,1753956650127,-460.0,0.00020273,2]
[376381899,1753956650136,-460.0,0.00020273,2]
[376381900,1753956650145,-460.0,0.00020273,2]
[376381901,1753956650155,-460.0,0.00020273,2]
[376381902,1753956650164,-460.0,0.00020273,2]
[376381903,1753956650174,-460.0,0.00020273,2]
[376381904,1753956650183,-460.0,0.00020273,2]
[376381905,1753956650192,-460.0,0.00020273,2]
[376381906,1753956650201,-460.0,0.00020273,2]
[376381907,1753956650210,-460.0,0.00020273,2]
[376381908,1753956650219,-475.46,0.00020273,2]
[376381909,1753956650228,-460.0,0.00020273,2]
[376381910,1753956650237,-528.43,0.00020273,2]
[376381911,1753956650246,-460.0,0.00020273,2]
[376381912,1753956650255,-460.0,0.00020273,2]
[376381913,1753956650352,-460.0,0.00020273,2]
[376381914,1753956650361,-460.0,0.00020273,2]
[376381915,1753956650370,-470.04277063,0.00020273,2]
[376381916,1753956650380,-460.0,0.00020273,2]
[376381917,1753956650390,-460.0,0.00020273,2]
[376381918,1753956650399,-460.0,0.00020273,2]
[376381919,1753956650409,-460.0,0.00020273,2]
[376381920,1753956650420,-460.0,0.00020273,2]
[376381921,1753956650432,-460.0,0.00020273,2]
[376381922,1753956650441,-460.0,0.00020273,2]
[376381923,1753956650451,-460.0,0.00020273,2]
[376381924,1753956650460,-460.0,0.00020273,2]
[376381925,1753956650470,-460.0,0.00020273,2]
[376381926,1753956650479,-460.0,0.00020273,2]
[376381927,1753956650489,-460.0,0.00020273,2]
[376381928,1753956650498,-460.0,0.00020273,2]
[376381929,1753956650507,-460.0,0.00020273,2]
[376381930,1753956650516,-460.0,0.00020273,2]
[376381931,1753956650526,-460.0,0.00020273,2]
[376381932,1753956650535,-460.0,0.00020273,2]
[376381933,1753956650544,-466.04290391,0.00020273,2]
[376381934,1753956650553,-460.0,0.00020273,2]
[376381935,1753956650562,-460.0,0.00020273,2]
[376381936,1753956650571,-460.0,0.00020273,2]
[376381937,1753956650580,-437.8,0.00020273,2]
[376381938,1753956650589,-460.0,0.00020273,2]
[376381939,1753956650598,-460.0,0.00020273,2]
[376381940,1753956650607,-460.0,0.00020273,2]
[376381941,1753956650617,-615.44,0.00020273,2]
[376381942,1753956650626,-460.0,0.00020273,2]
[376381943,1753956650635,-460.0,0.00020273,2]
[376381944,1753956650644,-460.0,0.00020273,2]
[376381945,1753956650653,-729.91,0.00020273,2]
[376381946,1753956650662,-460.0,0.00020273,2]
[376381947,1753956650672,-460.0,0.00020273,2]
[376381948,1753956650681,-460.0,0.00020273,2]
[376381949,1753956650691,-460.0,0.00020273,2]
[376381950,1753956650700,-766.15,0.00020273,2]
[376381951,1753956650709,-460.0,0.00020273,2]
[376381952,1753956650718,-460.0,0.00020273,2]
[376381953,1753956650727,-460.0,0.00020273,2]
[376381954,1753956650736,-327.85467811,0.00020273,2]
[376381955,1753956650746,-481.33,0.00020273,2]
[376381956,1753956650755,-460.0,0.00020273,2]
[376381957,1753956650763,-460.0,0.00020273,2]
[376381958,1753956650773,-460.0,0.00020273,2]
[376381959,1753956650782,-1798.72,0.00020273,2]
[376381960,1753956650792,-460.0,0.00020273,2]
[376381961,1753956650801,-460.0,0.00020273,2]
[376381962,1753956650810,-460.0,0.00020273,2]
[376381963,1753956650820,-460.0,0.00020273,2]
[376381964,1753956650829,-620.24,0.00020273,2]
[376381965,1753956650839,-460.0,0.00020273,2]
[376381966,1753956650848,-420.71,0.00020273,2]
[376381967,1753956650857,-460.0,0.00020273,2]
[376381968,1753956650867,-460.0,0.00020273,2]
[376381969,1753956650876,-627.66,0.00020273,2]
[376381970,1753956650885,-181.63424312,0.00020273,2]
[376381971,1753956650894,-745.28,0.00020273,2]
[376381972,1753956650903,-328.46,0.00020273,2]
[376381973,1753956650913,-381.59560129,0.00020273,2]
[376381974,1753956650922,-460.0,0.00020273,2]
[376381975,1753956650931,-460.0,0.00020273,2]
[376381976,1753956650941,-460.0,0.00020273,2]
[376381977,1753956650950,-583.67,0.00020273,2]
[376381978,1753956650959,-460.0,0.00020273,2]
[376381979,1753956650970,-1465.88,0.00020273,2]
[376381980,1753956650980,-460.0,0.00020273,2]
[376381981,1753956650989,-958.59,0.00020273,2]
[376381982,1753956650999,-460.0,0.00020273,2]
[376381983,1753956651008,-460.0,0.00020273,2]
[376381984,1753956651018,-585.31,0.00020273,2]
[376381985,1753956651027,-446.29,0.00020273,2]
[376381986,1753956651037,-582.92,0.00020273,2]
[376381987,1753956651046,-460.0,0.00020273,2]
[376381988,1753956651055,-809.34,0.00020273,2]
[376381989,1753956651064,-460.0,0.00020273,2]
[376381990,1753956651073,-460.0,0.00020273,2]
[376381991,1753956651083,-460.0,0.00020273,2]
[376381992,1753956651092,-2923.18878473,0.00020383,3]
[376381993,1753956651101,-160.0,0.00020415,2]
[376381994,1753956651111,-2511.02,0.00020438,3]
[376381995,1753956651120,-1255.52,0.00020438,3]
[376381996,1753956651129,-627.76,0.00020438,3]
[376381997,1753956651138,-313.88,0.00020438,3]
[376381998,1753956651147,-460.682337,0.00020438,3]
[376381999,1753956651156,-151.0,0.000205,4]
[376382000,1753956651166,-460.0,0.00020547,2]
[376382001,1753956651175,-460.0,0.00020547,2]
[376382002,1753956651184,-556.39229353,0.00020547,2]
[376382003,1753956651193,-460.0,0.00020547,2]
[376382004,1753956651203,-460.0,0.00020547,2]
[376382005,1753956651211,-460.0,0.00020547,2]
[376382006,1753956651221,-332.06771618,0.00020547,2]
[376382007,1753956651230,-404.29429909,0.00020547,2]
[376382008,1753956651239,-460.0,0.00020547,2]
[376382009,1753956651248,-460.0,0.00020547,2]
[376382010,1753956651258,-460.0,0.00020547,2]
[376382011,1753956651267,-460.0,0.00020547,2]
[376382012,1753956651277,-460.0,0.00020547,2]
[376382013,1753956651286,-460.0,0.00020547,2]
[376382014,1753956651295,-460.0,0.00020547,2]
[376382015,1753956651304,-464.62650634,0.00020547,2]
[376382016,1753956651314,-460.0,0.00020547,2]
[376382017,1753956651323,-460.0,0.00020547,2]
[376382018,1753956651332,-460.0,0.00020547,2]
[376382019,1753956651345,-460.0,0.00020547,2]
[376382020,1753956651355,-235.48106624,0.00020547,2]
[376382021,1753956651364,-460.52,0.00020547,2]
[376382022,1753956651373,-460.0,0.00020547,2]
[376382023,1753956651383,-460.0,0.00020547,2]
[376382024,1753956651392,-460.0,0.00020547,2]
[376382025,1753956651402,-615.44,0.00020547,2]
[376382026,1753956651412,-460.0,0.00020547,2]
[376382027,1753956651421,-460.0,0.00020547,2]
[376382028,1753956651431,-729.91,0.00020547,2]
[376382029,1753956651441,-460.0,0.00020547,2]
[376382030,1753956651450,-460.0,0.00020547,2]
[376382031,1753956651459,-460.0,0.00020547,2]
[376382032,1753956651470,-766.15,0.00020547,2]
[376382033,1753956651480,-460.0,0.00020547,2]
[376382034,1753956651490,-460.0,0.00020547,2]
[376382035,1753956651498,-460.0,0.00020547,2]
[376382036,1753956651508,-460.0,0.00020547,2]
[376382037,1753956651517,-460.0,0.00020547,2]
[376382038,1753956651526,-1798.72,0.00020547,2]
[376382039,1753956651535,-460.0,0.00020547,2]
[376382040,1753956651544,-460.0,0.00020547,2]
[376382041,1753956651553,-460.0,0.00020547,2]
[376382042,1753956651562,-460.0,0.00020547,2]
[376382043,1753956651571,-620.24,0.00020547,2]
[376382044,1753956651579,-151.0,0.00020547,2]
[376382045,1753956651589,-460.0,0.00020547,2]
[376382046,1753956651598,-460.0,0.00020547,2]
[376382047,1753956651607,-460.0,0.00020547,2]
[376382048,1753956651616,-627.66,0.00020547,2]
[376382049,1753956651625,-745.28,0.00020547,2]
[376382050,1753956651634,-460.0,0.00020547,2]
[376382051,1753956651643,-460.0,0.00020547,2]
[376382052,1753956651652,-583.67,0.00020547,2]
[376382053,1753956651661,-460.0,0.00020547,2]
[376382054,1753956651670,-1465.88,0.00020547,2]
[376382055,1753956651682,-460.0,0.00020547,2]
[376382056,1753956651691,-958.59,0.00020547,2]
[376382057,1753956651700,-460.0,0.00020547,2]
[376382058,1753956651709,-216.240738,0.00020547,2]
[376382059,1753956651718,-585.31,0.00020547,2]
[376382060,1753956651727,-582.92,0.00020547,2]
[376382061,1753956651736,-460.0,0.00020547,2]
[376382062,1753956651745,-809.34,0.00020547,2]
[376382063,1753956651754,-460.0,0.00020547,2]
[376382064,1753956651764,-460.0,0.00020547,2]
[376382065,1753956651773,-460.0,0.00020547,2]
[376382066,1753956651782,-268.19769114,0.00020548,2]
[376382067,1753956651791,-1509.14387867,0.00020568,2]
[376382068,1753956651800,-177.0,0.00020575,3]
[376382069,1753956651810,-151.0,0.00020624,2]
[376382070,1753956651819,-2923.18878473,0.00020624,3]
[376382071,1753956651827,-420.0,0.00020684,2]
[376382072,1753956651837,-420.0,0.00020684,2]
[376382073,1753956651846,-248.0,0.00020684,2]
[376382074,1753956651855,-420.0,0.00020684,2]
[376382075,1753956651864,-420.0,0.00020684,2]
[376382076,1753956651873,-1680.0,0.00020685,2]
[376382077,1753956651882,-2000.0,0.00020716,2]
[376382078,1753956651892,-1000.0,0.00020716,2]
[376382079,1753956651902,-1680.0,0.00020785,2]
[376382080,1753956651911,-151.0,0.000208,4]
[376382081,1753956651921,-151.0,0.000208,3]
[376382082,1753956651931,-151.0,0.0002081,2]
[376382083,1753956651940,-151.0,0.0002081,2]
[376382084,1753956651950,-460.0,0.00020821,2]
[376382085,1753956651959,-460.0,0.00020821,2]
[376382086,1753956651968,-460.0,0.00020821,2]
[376382087,1753956651977,-460.0,0.00020821,2]
[376382088,1753956651986,-460.0,0.00020821,2]
[376382089,1753956651996,-540.95736422,0.00020821,2]
[376382090,1753956652007,-465.68674025,0.00020821,2]
[376382091,1753956652017,-466.92753966,0.00020821,2]
[376382092,1753956652025,-460.0,0.00020821,2]
[376382093,1753956652034,-460.0,0.00020821,2]
[376382094,1753956652043,-522.37270513,0.00020821,2]
[376382095,1753956652053,-460.0,0.00020821,2]
[376382096,1753956652062,-460.0,0.00020821,2]
[376382097,1753956652071,-460.0,0.00020821,2]
[376382098,1753956652159,-460.0,0.00020821,2]
[376382099,1753956652169,-460.0,0.00020821,2]
[376382100,1753956652178,-460.0,0.00020821,2]
[376382101,1753956652187,-615.44,0.00020821,2]
[376382102,1753956652196,-522.72,0.00020821,2]
[376382103,1753956652205,-460.0,0.00020821,2]
[376382104,1753956652214,-729.91,0.00020821,2]
[376382105,1753956652223,-460.0,0.00020821,2]
[376382106,1753956652232,-460.0,0.00020821,2]
[376382107,1753956652241,-460.0,0.00020821,2]
[376382108,1753956652250,-766.15,0.00020821,2]
[376382109,1753956652259,-345.88,0.00020821,2]
[376382110,1753956652270,-268.92,0.00020821,2]
[376382111,1753956652280,-460.0,0.00020821,2]
[376382112,1753956652289,-460.0,0.00020821,2]
[376382113,1753956652297,-460.0,0.00020821,2]
[376382114,1753956652306,-1798.72,0.00020821,2]
[376382115,1753956652316,-460.0,0.00020821,2]
[376382116,1753956652324,-460.0,0.00020821,2]
[376382117,1753956652335,-176.72596265,0.00020821,2]
[376382118,1753956652346,-460.0,0.00020821,2]
[376382119,1753956652355,-620.24,0.00020821,2]
[376382120,1753956652365,-321.28,0.00020821,2]
[376382121,1753956652374,-460.0,0.00020821,2]
[376382122,1753956652385,-460.0,0.00020821,2]
[376382123,1753956652394,-627.66,0.00020821,2]
[376382124,1753956652403,-745.28,0.00020821,2]
[376382125,1753956652419,-460.0,0.00020821,2]
[376382126,1753956652436,-583.67,0.00020821,2]
[376382127,1753956652446,-460.0,0.00020821,2]
[376382128,1753956652454,-1465.88,0.00020821,2]
[376382129,1753956652463,-460.0,0.00020821,2]
[376382130,1753956652473,-958.59,0.00020821,2]
[376382131,1753956652481,-460.0,0.00020821,2]
[376382132,1753956652490,-585.31,0.00020821,2]
[376382133,1753956652499,-582.92,0.00020821,2]
[376382134,1753956652508,-460.0,0.00020821,2]
[376382135,1753956652517,-809.34,0.00020821,2]
[376382136,1753956652526,-460.0,0.00020821,2]
[376382137,1753956652535,-460.0,0.00020821,2]
[376382138,1753956652545,-234.94803479,0.00020821,2]
[376382139,1753956652561,-196.36196521,0.00020821,2]
[376382140,1753956652570,-73.86415312,0.00020866,4]
[376382141,1753956652582,-667.58803514,0.00020866,4]
[376382142,1753956652866,-0.02335759,0.00019452,2]
[376382143,1753956652878,-459.97664241,0.00019452,2]
[376382144,1753956652888,-460.0,0.00019726,2]
[376382145,1753956652897,-360.38736672,0.0002,2]
[376382146,1753956652909,-99.61263328,0.0002,2]
[376382147,1753956652918,-460.0,0.00020273,2]
[376382148,1753956652927,-460.0,0.00020547,2]
[376382149,1753956652936,-2181.73659647,0.00020866,4]
[376382150,1753956652945,-151.0,0.00020882,2]
[376382151,1753956652954,-285.35980803,0.00020882,2]
[376382152,1753956652998,-4425.92508555,0.00018978,2]
[376382153,1753956653007,-153.965268,0.0001999,2]
[376382154,1753956653017,-232.10344317,0.00020821,2]
[376382155,1753956653028,-227.89655683,0.00020821,2]
[376382156,1753956653037,-16.63149497,0.00020882,2]
[376382157,1753956653047,-420.0,0.00020963,2]
[376382158,1753956653056,-151.0,0.00021094,2]
[376382159,1753956653065,-310.48121328,0.00021095,2]
[376382160,1753956653074,-460.0,0.00021095,2]
[376382161,1753956653084,-151.0,0.00021095,2]
[376382162,1753956653093,-259.8211448,0.00021095,2]
[376382163,1753956653104,-304.7988552,0.00021095,2]
[376382164,1753956653113,-274.102099,0.00021095,2]
[376382165,1753956653123,-30.62670207,0.00021095,2]
[376382166,1753956653136,-120.37329793,0.00021095,2]
[376382167,1753956653145,-460.0,0.00021095,2]
[376382168,1753956653154,-405.883959,0.00021095,2]
[376382169,1753956653163,-405.883959,0.00021095,2]
[376382170,1753956653172,-460.0,0.00021095,2]
[376382171,1753956653182,-460.0,0.00021095,2]
[376382172,1753956653192,-460.0,0.00021095,2]
[376382173,1753956653202,-460.0,0.00021095,2]
[376382174,1753956653211,-460.0,0.00021095,2]
[376382175,1753956653220,-460.0,0.00021095,2]
[376382176,1753956653229,-460.0,0.00021095,2]
[376382177,1753956653238,-615.44,0.00021095,2]
[376382178,1753956653247,-460.0,0.00021095,2]
[376382179,1753956653257,-729.91,0.00021095,2]
[376382180,1753956653266,-239.98,0.00021095,2]
[376382181,1753956653275,-460.0,0.00021095,2]
[376382182,1753956653284,-460.0,0.00021095,2]
[376382183,1753956653297,-766.15,0.00021095,2]
[376382184,1753956653306,-460.0,0.00021095,2]
[376382185,1753956653315,-460.0,0.00021095,2]
[376382186,1753956653323,-460.0,0.00021095,2]
[376382187,1753956653332,-1798.72,0.00021095,2]
[376382188,1753956653346,-460.0,0.00021095,2]
[376382189,1753956653356,-460.0,0.00021095,2]
[376382190,1753956653365,-460.0,0.00021095,2]
[376382191,1753956653374,-620.24,0.00021095,2]
[376382192,1753956653383,-460.0,0.00021095,2]
[376382193,1753956653392,-481.47,0.00021095,2]
[376382194,1753956653401,-627.66,0.00021095,2]
[376382195,1753956653410,-745.28,0.00021095,2]
[376382196,1753956653627,-460.0,0.00021095,2]
[376382197,1753956653636,-583.67,0.00021095,2]
[376382198,1753956653645,-1465.88,0.00021095,2]
[376382199,1753956653654,-526.71911602,0.00021095,2]
[376382200,1753956653663,-958.59,0.00021095,2]
[376382201,1753956653672,-460.0,0.00021095,2]
[376382202,1753956653681,-585.31,0.00021095,2]
[376382203,1753956653690,-582.92,0.00021095,2]
[376382204,1753956653699,-460.0,0.00021095,2]
[376382205,1753956653708,-809.34,0.00021095,2]
[376382206,1753956653717,-460.0,0.00021095,2]
[376382207,1753956653726,-460.0,0.00021095,2]
[376382208,1753956653734,-386.43625856,0.00021095,2]
[376382209,1753956653743,-151.0,0.000211,4]
[376382210,1753956653753,-642.16700293,0.00021105,2]
[376382211,1753956653762,-2923.18878473,0.00021107,4]
[376382212,1753956653771,-667.39244488,0.00021264,2]
[376382213,1753956653781,-200.0,0.00021278,15]
[376382214,1753956653790,-200.0,0.00021278,15]
[376382215,1753956653798,-200.0,0.00021278,15]
[376382216,1753956653807,-200.0,0.00021278,15]
[376382217,1753956653816,-320.0,0.00021278,15]
[376382218,1753956653825,-151.0,0.000213,4]
[376382219,1753956653835,-2923.18878473,0.00021348,5]
[376382220,1753956653844,-460.0,0.00021369,2]
[376382221,1753956653853,-460.0,0.00021369,2]
[376382222,1753956653864,-460.0,0.00021369,2]
[376382223,1753956653874,-460.0,0.00021369,2]
[376382224,1753956653882,-460.0,0.00021369,2]
[376382225,1753956653892,-464.3,0.00021369,2]
[376382226,1753956653901,-615.44,0.00021369,2]
[376382227,1753956653911,-460.0,0.00021369,2]
[376382228,1753956653921,-729.91,0.00021369,2]
[376382229,1753956653930,-460.0,0.00021369,2]
[376382230,1753956653939,-460.0,0.00021369,2]
[376382231,1753956653948,-766.15,0.00021369,2]
[376382232,1753956653958,-464.54,0.00021369,2]
[376382233,1753956653967,-460.0,0.00021369,2]
[376382234,1753956653976,-372.38,0.00021369,2]
[376382235,1753956653985,-1798.72,0.00021369,2]
[376382236,1753956654070,-460.0,0.00021369,2]
[376382237,1753956654082,-460.0,0.00021369,2]
[376382238,1753956654092,-460.0,0.00021369,2]
[376382239,1753956654101,-620.24,0.00021369,2]
[376382240,1753956654111,-460.0,0.00021369,2]
[376382241,1753956654120,-627.66,0.00021369,2]
[376382242,1753956654130,-745.28,0.00021369,2]
[376382243,1753956654139,-460.0,0.00021369,2]
[376382244,1753956654148,-583.67,0.00021369,2]
[376382245,1753956654158,-1465.88,0.00021369,2]
[376382246,1753956654167,-958.59,0.00021369,2]
[376382247,1753956654176,-336.46,0.00021369,2]
[376382248,1753956654186,-585.31,0.00021369,2]
[376382249,1753956654195,-582.92,0.00021369,2]
[376382250,1753956654204,-460.0,0.00021369,2]
[376382251,1753956654215,-809.34,0.00021369,2]
[376382252,1753956654224,-460.0,0.00021369,2]
[376382253,1753956654234,-460.0,0.00021369,2]
[376382254,1753956654243,-151.0,0.000214,3]
[376382255,1753956654253,-2923.18878473,0.0002159,5]
[376382256,1753956654263,-151.0,0.000216,3]
[376382257,1753956654272,-331.95,0.00021643,2]
[376382258,1753956654281,-171.02,0.00021643,2]
[376382259,1753956654290,-460.0,0.00021643,2]
[376382260,1753956654300,-460.0,0.00021643,2]
[376382261,1753956654308,-615.44,0.00021643,2]
[376382262,1753956654319,-460.0,0.00021643,2]
[376382263,1753956654329,-729.91,0.00021643,2]
[376382264,1753956654342,-588.78459057,0.00021643,2]
[376382265,1753956654352,-460.0,0.00021643,2]
[376382266,1753956654362,-766.15,0.00021643,2]
[376382267,1753956654371,-460.0,0.00021643,2]
[376382268,1753956654381,-1798.72,0.00021643,2]
[376382269,1753956654391,-460.0,0.00021643,2]
[376382270,1753956654400,-236.4,0.00021643,2]
[376382271,1753956654411,-460.0,0.00021643,2]
[376382272,1753956654421,-620.24,0.00021643,2]
[376382273,1753956654430,-460.0,0.00021643,2]
[376382274,1753956654439,-627.66,0.00021643,2]
[376382275,1753956654448,-745.28,0.00021643,2]
[376382276,1753956654458,-460.0,0.00021643,2]
[376382277,1753956654467,-583.67,0.00021643,2]
[376382278,1753956654476,-1465.88,0.00021643,2]
[376382279,1753956654485,-958.59,0.00021643,2]
[376382280,1753956654495,-585.31,0.00021643,2]
[376382281,1753956654504,-582.92,0.00021643,2]
[376382282,1753956654513,-460.0,0.00021643,2]
[376382283,1753956654522,-809.34,0.00021643,2]
[376382284,1753956654532,-460.0,0.00021643,2]
[376382285,1753956654541,-460.0,0.00021643,2]
[376382286,1753956654550,-304.704,0.00021723,2]
[376382287,1753956654559,-812.24052733,0.00021831,6]
[376382288,1753956654574,-2110.9482574,0.00021831,6]
[376382289,1753956654583,-151.0,0.00021917,2]
[376382290,1753956654593,-460.0,0.00021917,2]
[376382291,1753956654602,-460.0,0.00021917,2]
[376382292,1753956654611,-615.44,0.00021917,2]
[376382293,1753956654621,-460.0,0.00021917,2]
[376382294,1753956654630,-729.91,0.00021917,2]
[376382295,1753956654639,-460.0,0.00021917,2]
[376382296,1753956654649,-766.15,0.00021917,2]
[376382297,1753956654658,-460.0,0.00021917,2]
[376382298,1753956654669,-1798.72,0.00021917,2]
[376382299,1753956654681,-460.0,0.00021917,2]
[376382300,1753956654690,-460.0,0.00021917,2]
[376382301,1753956654699,-620.24,0.00021917,2]
[376382302,1753956654708,-460.0,0.00021917,2]
[376382303,1753956654717,-627.66,0.00021917,2]
[376382304,1753956654726,-745.28,0.00021917,2]
[376382305,1753956654735,-460.0,0.00021917,2]
[376382306,1753956654744,-583.67,0.00021917,2]
[376382307,1753956654754,-1465.88,0.00021917,2]
[376382308,1753956654763,-958.59,0.00021917,2]
[376382309,1753956654773,-585.31,0.00021917,2]
[376382310,1753956654782,-582.92,0.00021917,2]
[376382311,1753956654791,-460.0,0.00021917,2]
[376382312,1753956654800,-809.34,0.00021917,2]
[376382313,1753956654810,-73.92923608,0.00021917,2]
[376382314,1753956654964,-883.33333,0.00019077,2]
[376382315,1753956654978,-883.33333,0.00019077,2]
[376382316,1753956654992,-883.33333,0.00019077,2]
[376382317,1753956655005,-883.33333,0.00019077,2]
[376382318,1753956655020,-883.33333,0.00019077,2]
[376382319,1753956655035,-4425.92508555,0.00021905,2]
[376382320,1753956655047,-291.39076392,0.00021917,2]
[376382321,1753956655061,-460.0,0.00021917,2]
[376382322,1753956655074,-151.0,0.00021918,2]
[376382323,1753956655087,-698.30091487,0.00021973,2]
[376382324,1753956655103,-2793.20365947,0.00021973,2]
[376382325,1753956655119,-440.27367773,0.00021973,2]
[376382326,1753956655136,-151.0,0.00022,3]
[376382327,1753956655149,-12623.12,0.00022,7]
[376382328,1753956655160,-1298.18,0.00022,7]
[376382329,1753956655171,-2264.11,0.00022,7]
[376382330,1753956655185,-39544.53,0.00022,2]
[376382331,1753956655200,-151.0,0.00022,7]
[376382332,1753956655212,-460.682337,0.00022,7]
[376382333,1753956655227,-151.0,0.00022,7]
[376382334,1753956655241,-165.0,0.00022,2]
[376382335,1753956655251,-2923.18878473,0.00022072,6]
[376382336,1753956655263,-151.01077,0.000221,4]
[376382337,1753956655275,-156.35794,0.000221,4]
[376382338,1753956655287,-642.16700293,0.00022169,2]
[376382339,1753956655300,-151.0,0.0002219,7]
[376382340,1753956655313,-151.0,0.0002219,7]
[376382341,1753956655324,-460.0,0.00022191,2]
[376382342,1753956655336,-460.0,0.00022191,2]
[376382343,1753956655349,-615.44,0.00022191,2]
[376382344,1753956655361,-460.0,0.00022191,2]